[Event "DVM U20w 2019"]
[Site "Braunschweig"]
[Date "2019.12.28"]
[Round "3"]
[White "Oberhofer, Marie"]
[Black "Möller, Hannah"]
[Result "1/2-1/2"]
[ECO "B06"]
[WhiteElo "1700"]
[BlackElo "1832"]
[Annotator "NA RC"]
[PlyCount "53"]
[EventDate "2019.12.27"]
[EventType "team-tourn"]
[EventRounds "7"]
[EventCountry "GER"]
[SourceTitle "playchess.com"]
[Source "ChessBase"]
[SourceQuality "1"]
[WhiteTeam "SC Bavaria Regensburg"]
[BlackTeam "SV Lingen"]
[TimeControl "40/5400+30:1800+30"]

1. e4 {[%emt 0:00:00]} g6 {[%emt 0:00:00]} 2. d4 {[%emt 0:00:00]} Bg7 {[%emt 0:00:00] unterminated} 3. Be3 {[%emt 0:00:11]} d6 {[%emt 0:00:59] unterminated} 4. Nc3 {[%emt 0:00:55]} Nf6 {[%emt 0:00:20] unterminated} 5. f3 {[%emt 0:07:45]} c6 {[%emt 0:01:15] unterminated} 6. Qd2 {[%emt 0:00:27]} b5 {[%emt 0:00:15]} 7. a3 {[%emt 0:00:43] unterminated} a5 {[%emt 0:00:57] unterminated} 8. Bd3 {[%emt 0:02:08]} Bd7 {[%emt 0:01:00] unterminated} 9. Nge2 {[%emt 0:09:32] unterminated} O-O {[%emt 0:00:49]} 10. O-O {[%emt 0:00:59]} Ne8 {[%emt 0:00:33] unterminated} 11. Bh6 {[%emt 0:03:45] unterminated} e5 {[%emt 0:04:09] unterminated} 12. Bxg7 {[%emt 0:01:31]} Kxg7 {[%emt 0:00:20]} 13. f4 {[%emt 0:00:22] unterminated} exd4 {[%emt 0:04:18]} 14. Nxd4 {[%emt 0:00:30] unterminated} Na6 {[%emt 0:01:12] unterminated} 15. f5 {[%emt 0:14:17] unterminated} Nc5 {[%emt 0:04:59] unterminated} 16. Rf3 $11 {[%emt 0:05:10]} (16. b4 $14 Nxd3 17. cxd3) 16... Nxd3 {[%emt 0:02:51]} 17. cxd3 {[%emt 0:02:30]} b4 {[%emt 0:01:11]} 18. Nce2 {[%emt 0:01:22]} c5 {[%emt 0:00:50]} 19. Nc2 {[%emt 0:03:07]} g5 {[%emt 0:07:09]} 20. f6+ {[%emt 0:02:20]} Kh8 {[%emt 0:00:06]} 21. Qxg5 {[%emt 0:04:44]} Rg8 {[%emt 0:00:48]} 22. Qh6 {[%emt 0:02:17]} Bg4 {[%emt 0:05:21]} 23. Raf1 {[%emt 0:08:22]} Ra7 {[%emt 0:06:39]} 24. Ne3 {[%emt 0:05:29]} Bxf3 {[%emt 0:03:37]} 25. Rxf3 {[%emt 0:00:09]} Rg6 {[%emt 0:00:06]} 26. Qf8+ {[%emt 0:03:17]} Rg8 {[%emt 0:02:46]} 27. Qh6 {[%emt 0:00:08] normal} 1/2-1/2

[Event "DVM U20w 2019"]
[Site "Braunschweig"]
[Date "2019.12.28"]
[Round "3"]
[White "Doll, Rebecca"]
[Black "Schnabel, Luise"]
[Result "0-1"]
[ECO "B03"]
[WhiteElo "1659"]
[BlackElo "1836"]
[Annotator "NA RC"]
[PlyCount "82"]
[EventDate "2019.12.27"]
[EventType "team-tourn"]
[EventRounds "7"]
[EventCountry "GER"]
[SourceTitle "playchess.com"]
[Source "ChessBase"]
[SourceQuality "1"]
[WhiteTeam "OSG Baden-Baden"]
[BlackTeam "TuRa Harksheide Norderstedt"]
[TimeControl "40/5400+30:1800+30"]

1. e4 Nf6 2. e5 Nd5 3. d4 d6 {unterminated} 4. Bc4 Nb6 5. Bb3 {unterminated} dxe5 6. Qf3 {unterminated} e6 7. dxe5 {unterminated} a5 {B03: Alekhine's Defence: Four Pawns Attack} (7... Nc6 8. Qg3 Nd4 9. Nf3 Nf5 10. Qh3 Bd7 11. O-O Bc6 12. Nc3 Be7 13. Rd1 Nd7 14. g4 Nh4 15. Nd4 Bg2 {1-0 (50) Zubov,A (2598)-Zilberman,Y (2334) Israel 2019}) 8. a4 {unterminated} Na6 {unterminated} 9. Nc3 {unterminated} Nc5 {unterminated} 10. Qg3 {unterminated} Nxb3 11. cxb3 {unterminated} Bd7 {unterminated} 12. Nf3 {unterminated} Qe7 $146 {unterminated} ({Predecessor:} 12... Bc6 $5 {[%cal Rd8d3]} 13. O-O Qd3 14. Rd1 Qg6 15. Nd4 Qxg3 16. hxg3 {0-1 (44) Gross,S (2420)-Biehler,T St Ingbert 1987}) 13. Bg5 {unterminated} Qb4 {unterminated} 14. Nd2 {unterminated} h6 {unterminated} 15. Be3 {unterminated} Nd5 {unterminated} 16. Nxd5 exd5 {unterminated} 17. Qf4 {unterminated} ({Better is} 17. f4) 17... Qxf4 18. Bxf4 {unterminated} Bb4 {unterminated} 19. Rd1 {unterminated} Bf5 {unterminated} 20. O-O {unterminated} (20. Ke2 $142) 20... c6 {unterminated} 21. Bg3 {unterminated} Bd3 {unterminated} 22. Rfe1 {unterminated} Bc2 {unterminated} 23. Ra1 {unterminated} d4 {unterminated} 24. f3 {unterminated} Bxd2 25. Re2 Be3+ {unterminated} 26. Kh1 Bxb3 {unterminated} 27. Ra3 {unterminated} Be6 28. Ra1 {unterminated} Rd8 29. Rd1 {unterminated} Bb3 30. Ra1 c5 {unterminated} 31. Be1 b6 32. h3 O-O 33. Bg3 Rfe8 {unterminated} 34. Ra3 c4 35. Ra1 {unterminated} Rd7 36. Ra3 $19 g5 37. Ra1 Re6 38. Ree1 Bf4 39. Bxf4 gxf4 40. Re2 d3 41. Rd2 Rxe5 {normal} 0-1

[Event "DVM U20w 2019"]
[Site "Braunschweig"]
[Date "2019.12.28"]
[Round "3"]
[White "Joers, Pia-Milena"]
[Black "Fock, Amina"]
[Result "0-1"]
[ECO "A46"]
[WhiteElo "1646"]
[BlackElo "1807"]
[Annotator "NA RC"]
[PlyCount "78"]
[EventDate "2019.12.27"]
[EventType "team-tourn"]
[EventRounds "7"]
[EventCountry "GER"]
[SourceTitle "playchess.com"]
[Source "ChessBase"]
[SourceQuality "1"]
[WhiteTeam "SG Güstrow/Teterow"]
[BlackTeam "SK Nordhorn-Blanke"]
[TimeControl "40/5400+30:1800+30"]

1. d4 {[%emt 0:00:00]} Nf6 {[%emt 0:00:00]} 2. Nf3 {[%emt 0:00:00]} e6 {[%emt 0:00:00]} 3. Bf4 {[%emt 0:00:00]} d5 {[%emt 0:00:00]} 4. e3 {[%emt 0:00:10]} c5 {[%emt 0:00:11]} 5. c3 {[%emt 0:00:38]} Nc6 {[%emt 0:00:09] unterminated} 6. Nbd2 {[%emt 0:01:07]} Be7 {[%emt 0:01:22]} 7. h3 {[%emt 0:00:28] unterminated} O-O {[%emt 0:00:36] unterminated} 8. Bd3 {[%emt 0:00:45] unterminated} b6 {[%emt 0:01:02]} 9. O-O {[%emt 0:00:40]} Bb7 {[%emt 0:00:46] unterminated} 10. Ne5 {[%emt 0:03:23] unterminated} a5 {[%emt 0:02:39] unterminated} 11. Ndf3 {[%emt 0:06:14] unterminated} Ne4 {[%emt 0:08:48] unterminated} 12. Bb5 {[%emt 0:10:16] unterminated} Qc8 {[%emt 0:05:25] unterminated} 13. Qa4 {[%emt 0:04:45] unterminated} Na7 $11 {[%emt 0:06:46]} 14. Be2 {[%emt 0:26:08]} Rd8 {[%emt 0:04:20]} 15. Qb3 {[%emt 0:03:51]} f6 {[%emt 0:02:33]} 16. Ng4 {[%emt 0:08:05]} h5 {[%emt 0:03:05]} 17. Nxf6+ {[%emt 0:10:33]} gxf6 {[%emt 0:04:00]} 18. Qxb6 {[%emt 0:01:04]} Bd6 {[%emt 0:02:17]} 19. Bxd6 {[%emt 0:01:06]} Rxd6 {[%emt 0:00:07]} 20. Qb3 {[%emt 0:03:28]} c4 {[%emt 0:06:59]} 21. Qc2 {[%emt 0:01:27]} Rc6 {[%emt 0:07:58]} 22. Nh2 {[%emt 0:00:44]} Qe8 {[%emt 0:00:31]} 23. Rfc1 {[%emt 0:01:29]} Nc8 {[%emt 0:01:30]} 24. Nf1 {[%emt 0:00:49]} f5 {[%emt 0:04:25]} 25. Bd1 {[%emt 0:01:04]} Ncd6 {[%emt 0:02:04]} 26. Qe2 {[%emt 0:00:17]} Rb6 {[%emt 0:01:02]} 27. Rab1 {[%emt 0:00:37]} h4 {[%emt 0:01:23]} 28. f3 {[%emt 0:01:12]} Ng3 {[%emt 0:04:21]} 29. Qe1 {[%emt 0:01:11]} Qg6 {[%emt 0:01:11]} 30. Kh2 {[%emt 0:01:24]} f4 {[%emt 0:03:00]} 31. exf4 {[%emt 0:00:41]} Nxf1+ {[%emt 0:00:11]} 32. Qxf1 {[%emt 0:00:23]} Qg3+ {[%emt 0:00:09]} 33. Kh1 {[%emt 0:00:21]} Nf5 {[%emt 0:01:57]} 34. Qe2 {[%emt 0:00:36]} Qxf4 {[%emt 0:00:20]} 35. Kg1 {[%emt 0:00:24] normal} Kf7 {[%emt 0:04:10]} 36. Bc2 {[%emt 0:00:13] normal} Ne3 {[%emt 0:05:47] normal} 37. Ba4 {[%emt 0:01:28]} Rg8 {[%emt 0:00:24] normal} 38. Kh1 {[%emt 0:01:24]} Nxg2 {[%emt 0:00:31]} 39. Rg1 {[%emt 0:00:25] normal} Qf5 {[%emt 0:00:43] normal} 0-1

[Event "DVM U20w 2019"]
[Site "Braunschweig"]
[Date "2019.12.28"]
[Round "3"]
[White "Biermann, Sophie"]
[Black "Ziegenfuss, Larissa"]
[Result "1/2-1/2"]
[ECO "A46"]
[WhiteElo "1645"]
[BlackElo "1755"]
[Annotator "NA RC"]
[PlyCount "50"]
[EventDate "2019.12.27"]
[EventType "team-tourn"]
[EventRounds "7"]
[EventCountry "GER"]
[SourceTitle "playchess.com"]
[Source "ChessBase"]
[SourceQuality "1"]
[WhiteTeam "SG Trier"]
[BlackTeam "SG Blau-Weiß Stadtilm"]
[TimeControl "40/5400+30:1800+30"]

1. d4 {[%emt 0:00:00]} Nf6 {[%emt 0:00:00]} 2. Nf3 {[%emt 0:00:00]} e6 {[%emt 0:00:04]} 3. Bf4 {[%emt 0:00:46]} b6 {[%emt 0:01:27]} 4. e3 {[%emt 0:00:40]} Bb7 {[%emt 0:01:18]} 5. h3 {[%emt 0:01:13]} c5 {[%emt 0:04:14]} 6. Nbd2 {[%emt 0:08:14]} Nc6 {[%emt 0:02:33]} 7. c3 {[%emt 0:02:17]} a6 {[%emt 0:02:24]} 8. Bd3 {[%emt 0:03:52]} d5 {[%emt 0:08:38]} 9. O-O {[%emt 0:06:24]} Bd6 {[%emt 0:02:57]} 10. Bxd6 {[%emt 0:09:00]} Qxd6 {[%emt 0:00:09]} 11. Re1 {[%emt 0:14:13]} O-O {[%emt 0:06:37]} 12. e4 {[%emt 0:05:50]} dxe4 {[%emt 0:02:27]} 13. Nxe4 {[%emt 0:04:22]} Nxe4 {[%emt 0:02:36]} 14. dxc5 {[%emt 0:02:26]} Qxc5 {[%emt 0:01:23]} 15. Bxe4 {[%emt 0:00:32]} Qe7 {[%emt 0:16:31]} 16. Qc2 {[%emt 0:03:18]} h6 {[%emt 0:04:24]} 17. Rad1 {[%emt 0:01:34]} Rac8 {[%emt 0:02:33]} 18. Qe2 {[%emt 0:03:52]} Qc7 {[%emt 0:03:17]} 19. Rd2 {[%emt 0:03:02]} Rfd8 {[%emt 0:02:03]} 20. Red1 {[%emt 0:01:33]} Rxd2 {[%emt 0:01:03]} 21. Rxd2 {[%emt 0:00:48]} Rd8 {[%emt 0:03:24]} 22. Rxd8+ {[%emt 0:05:10] normal} Nxd8 {[%emt 0:06:01] normal} 23. Bxb7 {[%emt 0:01:56]} Qxb7 {[%emt 0:00:19] normal} 24. Qd3 {[%emt 0:01:32] normal} Nc6 {[%emt 0:01:49] normal} 25. Qd6 {[%emt 0:01:14] normal} b5 {[%emt 0:02:40] normal} 1/2-1/2

[Event "DVM U20w 2019"]
[Site "Braunschweig"]
[Date "2019.12.28"]
[Round "3"]
[White "Jacoby, Angelina"]
[Black "Adelhardt, Lisa"]
[Result "1/2-1/2"]
[ECO "A46"]
[WhiteElo "1635"]
[BlackElo "1418"]
[Annotator "NA"]
[PlyCount "84"]
[EventDate "2019.12.27"]
[EventType "team-tourn"]
[EventRounds "7"]
[EventCountry "GER"]
[SourceTitle "playchess.com"]
[Source "ChessBase"]
[SourceQuality "1"]
[WhiteTeam "Leegebrucher SF"]
[BlackTeam "SC Erlangen 48/88"]
[TimeControl "40/5400+30:1800+30"]

1. d4 {[%emt 0:00:00]} Nf6 {[%emt 0:00:00]} 2. Nf3 {[%emt 0:00:00]} e6 {[%emt 0:00:00]} 3. Bf4 {[%emt 0:00:00]} c5 {[%emt 0:00:09]} 4. e3 {[%emt 0:00:46]} d5 {[%emt 0:00:38]} 5. c3 {[%emt 0:01:34]} Bd6 {[%emt 0:00:30]} 6. Bg3 {[%emt 0:01:01]} O-O {[%emt 0:00:22]} 7. Be2 {[%emt 0:02:51]} Qc7 {[%emt 0:01:28]} 8. Nbd2 {[%emt 0:01:57]} Nbd7 {[%emt 0:01:17]} 9. O-O {[%emt 0:01:21]} Bxg3 {[%emt 0:02:03]} 10. hxg3 {[%emt 0:00:06]} e5 {[%emt 0:01:51]} 11. dxe5 {[%emt 0:04:41]} Nxe5 {[%emt 0:01:38]} 12. Nxe5 {[%emt 0:00:21]} Qxe5 {[%emt 0:00:21]} 13. Nf3 {[%emt 0:00:23]} Qd6 {[%emt 0:09:09]} 14. Qc2 {[%emt 0:02:38]} Re8 {[%emt 0:12:22]} 15. Rad1 {[%emt 0:04:10]} Qc6 {[%emt 0:03:07]} 16. Qb3 {[%emt 0:17:30]} a6 {[%emt 0:09:46]} 17. Ng5 {[%emt 0:08:09]} h6 {[%emt 0:17:39]} 18. Nh3 {[%emt 0:02:33]} Be6 {[%emt 0:06:36]} 19. Nf4 {[%emt 0:03:32]} Rad8 {[%emt 0:05:04]} 20. Bf3 {[%emt 0:02:06]} b5 {[%emt 0:03:03]} 21. c4 {[%emt 0:19:09]} bxc4 {[%emt 0:05:38]} 22. Qxc4 {[%emt 0:00:17]} Qb5 {[%emt 0:01:23]} 23. Qxb5 {[%emt 0:05:14]} axb5 {[%emt 0:00:10]} 24. Nd3 {[%emt 0:07:48]} Nd7 {[%emt 0:02:37]} 25. Nf4 {[%emt 0:02:46]} Nb6 {[%emt 0:01:19]} 26. Be2 {[%emt 0:01:54]} c4 {[%emt 0:06:07]} 27. Rd4 {[%emt 0:02:32]} Ra8 {[%emt 0:01:51]} 28. a3 {[%emt 0:02:56]} Rad8 {[%emt 0:02:41]} 29. Rfd1 {[%emt 0:01:52]} Rd7 {[%emt 0:01:49]} 30. Bf3 {[%emt 0:01:15]} Red8 {[%emt 0:01:47]} 31. Kf1 {[%emt 0:01:00]} Kf8 {[%emt 0:00:34]} 32. e4 {[%emt 0:01:34]} dxe4 {[%emt 0:00:53]} 33. Nxe6+ {[%emt 0:00:06]} fxe6 {[%emt 0:00:47]} 34. Rxd7 {[%emt 0:00:09]} Rxd7 {[%emt 0:00:30]} 35. Rxd7 {[%emt 0:00:08]} Nxd7 {[%emt 0:00:05]} 36. Bxe4 {[%emt 0:00:06]} Ne5 {[%emt 0:01:09]} 37. Ke2 {[%emt 0:00:20]} Ke7 {[%emt 0:00:25]} 38. f4 {[%emt 0:00:58]} Nf7 {[%emt 0:00:59]} 39. Bc6 {[%emt 0:01:31]} Nd6 {[%emt 0:00:59]} 40. a4 {[%emt 0:01:00]} bxa4 {[%emt 0:00:37]} 41. Bxa4 {[%emt 0:30:08]} Kf6 {[%emt 0:02:02]} 42. Bc2 {[%emt 0:00:00]} e5 {[%emt 0:07:21] normal} 1/2-1/2

[Event "DVM U20w 2019"]
[Site "Braunschweig"]
[Date "2019.12.28"]
[Round "3"]
[White "Schmidt, Pauline"]
[Black "La, Quynh Trang"]
[Result "1/2-1/2"]
[ECO "C02"]
[WhiteElo "1628"]
[BlackElo "1436"]
[Annotator "NA RC"]
[PlyCount "77"]
[EventDate "2019.12.27"]
[EventType "team-tourn"]
[EventRounds "7"]
[EventCountry "GER"]
[SourceTitle "playchess.com"]
[Source "ChessBase"]
[SourceQuality "1"]
[WhiteTeam "SG Blau-Weiß Stadtilm"]
[BlackTeam "SG Trier"]
[TimeControl "40/5400+30:1800+30"]

1. e4 {[%emt 0:00:00]} e6 {[%emt 0:00:00]} 2. d4 {[%emt 0:00:00]} d5 {[%emt 0:00:00]} 3. e5 {[%emt 0:00:00]} c5 {[%emt 0:00:00]} 4. c3 {[%emt 0:00:00]} Nc6 {[%emt 0:00:00]} 5. Nf3 {[%emt 0:00:00]} Qb6 {[%emt 0:00:00]} 6. a3 {[%emt 0:00:08]} Bd7 {[%emt 0:00:52]} 7. b4 {[%emt 0:00:32]} cxd4 {[%emt 0:01:56]} 8. cxd4 {[%emt 0:00:10]} Nge7 {[%emt 0:02:12]} 9. Be3 {[%emt 0:01:40]} Nf5 {[%emt 0:01:43]} 10. Bd3 {[%emt 0:00:20]} Nxe3 {[%emt 0:05:43]} 11. fxe3 {[%emt 0:00:09]} Be7 {[%emt 0:03:22]} 12. O-O {[%emt 0:00:22]} f6 {[%emt 0:00:34]} 13. exf6 {[%emt 0:02:47]} Bxf6 {[%emt 0:00:09]} 14. Nc3 {[%emt 0:00:55]} O-O {[%emt 0:02:17]} 15. Rc1 {[%emt 0:02:19]} Ne7 {[%emt 0:07:30]} 16. Qd2 {[%emt 0:08:06]} Rac8 {[%emt 0:08:53]} 17. Kh1 {[%emt 0:10:03]} Kh8 {[%emt 0:22:20]} 18. Qe1 {[%emt 0:19:34]} Be8 {[%emt 0:16:18]} 19. Qg3 {[%emt 0:01:53]} Bg6 {[%emt 0:02:19]} 20. Bxg6 {[%emt 0:03:52]} Nxg6 {[%emt 0:00:13]} 21. Qh3 {[%emt 0:07:27]} Qa6 {[%emt 0:04:44]} 22. Rfd1 {[%emt 0:02:52]} Qxa3 {[%emt 0:04:26]} 23. Ne2 {[%emt 0:05:48]} Qa6 {[%emt 0:04:13]} 24. Ng3 {[%emt 0:07:32]} Kg8 {[%emt 0:04:39]} 25. Nh5 {[%emt 0:06:34]} Rxc1 {[%emt 0:00:12]} 26. Rxc1 {[%emt 0:01:44]} Bg5 {[%emt 0:00:03]} 27. Re1 {[%emt 0:06:21]} Nh4 {[%emt 0:03:10]} 28. Qg3 {[%emt 0:04:31]} Nxf3 {[%emt 0:00:31]} 29. gxf3 {[%emt 0:00:12]} Bh6 {[%emt 0:00:39]} 30. Rg1 {[%emt 0:03:32]} g6 {[%emt 0:01:21]} 31. Qe5 {[%emt 0:00:51]} Qe2 {[%emt 0:01:39]} 32. Qxe6+ {[%emt 0:00:20]} Kh8 {[%emt 0:00:16]} 33. Qe5+ {[%emt 0:00:24]} Kg8 {[%emt 0:00:20]} 34. Qxd5+ {[%emt 0:00:08]} Kh8 {[%emt 0:00:15]} 35. Qe5+ {[%emt 0:00:13]} Kg8 {[%emt 0:00:10] normal} 36. Nf6+ {[%emt 0:01:18] normal} Kh8 {[%emt 0:01:06] normal} 37. Nh5+ {[%emt 0:01:40] normal} Kg8 {[%emt 0:00:33] normal} 38. Qd5+ {[%emt 0:02:28]} Rf7 {[%emt 0:01:04] normal} 39. Qd8+ {[%emt 0:01:11] normal} 1/2-1/2

[Event "DVM U20w 2019"]
[Site "Braunschweig"]
[Date "2019.12.28"]
[Round "3"]
[White "Peglau, Dora"]
[Black "Kessen, Fanny"]
[Result "1-0"]
[ECO "D32"]
[WhiteElo "1502"]
[BlackElo "1265"]
[Annotator "NA"]
[PlyCount "29"]
[EventDate "2019.12.27"]
[EventType "team-tourn"]
[EventRounds "7"]
[EventCountry "GER"]
[SourceTitle "playchess.com"]
[Source "ChessBase"]
[SourceQuality "1"]
[WhiteTeam "Schachzentrum Seeblick"]
[BlackTeam "SC Borussia Lichtenberg"]
[TimeControl "40/5400+30:1800+30"]

1. c4 {[%emt 0:00:00]} e6 {[%emt 0:00:00]} 2. Nc3 {[%emt 0:00:00]} d5 {[%emt 0:00:08]} 3. d4 {[%emt 0:00:29]} c5 {[%emt 0:01:57]} 4. cxd5 {[%emt 0:00:46]} cxd4 {[%emt 0:02:17]} 5. Qxd4 {[%emt 0:03:13]} Nf6 {[%emt 0:03:34]} 6. e4 {[%emt 0:08:41]} Nc6 {[%emt 0:04:00]} 7. Bb5 {[%emt 0:07:03]} a6 {[%emt 0:04:38]} 8. Qa4 {[%emt 0:01:05]} exd5 {[%emt 0:02:47]} 9. exd5 {[%emt 0:01:02]} Bd7 {[%emt 0:06:21]} 10. dxc6 {[%emt 0:00:45]} bxc6 {[%emt 0:09:38]} 11. Bxc6 {[%emt 0:01:10]} Bxc6 {[%emt 0:01:10]} 12. Qxc6+ {[%emt 0:00:06]} Nd7 {[%emt 0:00:42]} 13. Nf3 {[%emt 0:01:10]} f6 {[%emt 0:03:33]} 14. Nd5 {[%emt 0:03:31]} Bc5 {[%emt 0:04:18]} 15. Nc7+ {[%emt 0:00:49] normal} 1-0

[Event "DVM U20w 2019"]
[Site "Braunschweig"]
[Date "2019.12.28"]
[Round "3"]
[White "Elenz, Elisa"]
[Black "Stephan, Lia"]
[Result "0-1"]
[ECO "B23"]
[WhiteElo "1456"]
[BlackElo "1232"]
[Annotator "NA RC"]
[PlyCount "89"]
[EventDate "2019.12.27"]
[EventType "team-tourn"]
[EventRounds "7"]
[EventCountry "GER"]
[SourceTitle "playchess.com"]
[Source "ChessBase"]
[SourceQuality "1"]
[WhiteTeam "SG Trier"]
[BlackTeam "SG Blau-Weiß Stadtilm"]
[TimeControl "40/5400+30:1800+30"]

1. e4 {[%emt 0:00:00]} c5 {[%emt 0:00:00]} 2. Nc3 {[%emt 0:00:00]} Nc6 {[%emt 0:00:20]} 3. f4 {[%emt 0:00:00]} g6 {[%emt 0:08:38]} 4. Nf3 {[%emt 0:00:19]} Bg7 {[%emt 0:01:17]} 5. Bc4 {[%emt 0:01:52]} e6 {[%emt 0:01:52]} 6. d3 {[%emt 0:00:55]} Nge7 {[%emt 0:00:29]} 7. O-O {[%emt 0:00:47]} O-O {[%emt 0:01:25]} 8. Qe1 {[%emt 0:01:55]} d5 {[%emt 0:02:35]} 9. Bb3 {[%emt 0:06:00]} b6 {[%emt 0:02:08]} 10. a3 {[%emt 0:06:33]} Ba6 {[%emt 0:02:43]} 11. Qe2 {[%emt 0:01:53]} b5 {[%emt 0:28:35]} 12. Nd1 {[%emt 0:19:07]} c4 {[%emt 0:08:10]} 13. Ba2 {[%emt 0:05:09]} Rb8 {[%emt 0:10:09]} 14. dxc4 {[%emt 0:03:43]} bxc4 {[%emt 0:01:33]} 15. c3 {[%emt 0:06:18]} Qb6+ {[%emt 0:03:19]} 16. Qf2 {[%emt 0:05:20]} Qxf2+ {[%emt 0:01:58]} 17. Kxf2 {[%emt 0:00:22]} dxe4 {[%emt 0:01:10]} 18. Nd2 {[%emt 0:01:17]} f5 {[%emt 0:00:32]} 19. Bxc4 {[%emt 0:01:34]} Bxc4 {[%emt 0:00:22]} 20. Nxc4 {[%emt 0:00:08]} Nd5 {[%emt 0:02:18]} 21. Bd2 {[%emt 0:03:51]} e5 {[%emt 0:02:55]} 22. g3 {[%emt 0:03:39]} Bh6 {[%emt 0:02:34]} 23. Ke1 {[%emt 0:02:13]} Rfe8 {[%emt 0:02:07]} 24. b4 {[%emt 0:01:13]} a6 {[%emt 0:02:52]} 25. Rb1 {[%emt 0:04:58]} Na7 {[%emt 0:00:25]} 26. a4 {[%emt 0:02:57]} Bg7 {[%emt 0:01:52]} 27. Rb3 {[%emt 0:02:29]} Nc7 {[%emt 0:01:39]} 28. Be3 {[%emt 0:03:00]} Nc6 {[%emt 0:00:16]} 29. Bb6 {[%emt 0:01:16]} Nd5 {[%emt 0:00:33]} 30. b5 {[%emt 0:01:17]} axb5 {[%emt 0:01:04]} 31. axb5 {[%emt 0:00:14]} Nxb6 {[%emt 0:01:58]} 32. bxc6 {[%emt 0:06:06]} Nxc4 {[%emt 0:00:26]} 33. Rxb8 {[%emt 0:01:14]} Rxb8 {[%emt 0:00:07]} 34. c7 {[%emt 0:00:19]} Rc8 {[%emt 0:00:03]} 35. fxe5 {[%emt 0:00:14]} Nxe5 {[%emt 0:00:26]} 36. Ke2 {[%emt 0:00:34]} Rxc7 {[%emt 0:00:04]} 37. Kd2 {[%emt 0:00:48]} Nf3+ 38. Kc2 {[%emt 0:00:41]} Nxh2 {[%emt 0:00:50]} 39. Rf2 {[%emt 0:00:23]} Ng4 {[%emt 0:00:07]} 40. Re2 {[%emt 0:00:11]} h5 {[%emt 0:00:32]} 41. Kb2 {[%emt 0:30:19]} g5 {[%emt 0:30:51]} 42. Rd2 {[%emt 0:00:49]} Ne5 {[%emt 0:01:06]} 43. Rd5 {[%emt 0:00:30]} f4 {[%emt 0:00:55]} 44. gxf4 {[%emt 0:00:15]} gxf4 {[%emt 0:00:04] normal} 45. Kc2 {[%emt 0:00:33] normal} 0-1

[Event "DVM U20w 2019"]
[Site "Braunschweig"]
[Date "2019.12.28"]
[Round "3"]
[White "Schilay, Maria"]
[Black "Schiewe, Nadin"]
[Result "0-1"]
[ECO "B01"]
[WhiteElo "1450"]
[BlackElo "1629"]
[Annotator "NA RC"]
[PlyCount "92"]
[EventDate "2019.12.27"]
[EventType "team-tourn"]
[EventRounds "7"]
[EventCountry "GER"]
[SourceTitle "playchess.com"]
[Source "ChessBase"]
[SourceQuality "1"]
[WhiteTeam "SC Erlangen 48/88"]
[BlackTeam "Leegebrucher SF"]
[TimeControl "40/5400+30:1800+30"]

1. e4 {[%emt 0:00:00]} d5 {[%emt 0:00:00]} 2. exd5 {[%emt 0:00:00]} Qxd5 {[%emt 0:00:00]} 3. Nc3 {[%emt 0:00:00]} Qa5 {[%emt 0:00:00]} 4. Bc4 {[%emt 0:00:16]} Nf6 {[%emt 0:00:14]} 5. d3 {[%emt 0:00:38]} c6 {[%emt 0:00:16]} 6. Bd2 {[%emt 0:00:34]} Qc7 {[%emt 0:02:10]} 7. Qe2 {[%emt 0:00:59]} Bf5 {[%emt 0:01:10]} 8. h3 {[%emt 0:02:31]} h6 {[%emt 0:01:56]} 9. g4 {[%emt 0:01:37]} Bh7 {[%emt 0:04:25]} 10. f4 {[%emt 0:01:50]} Nbd7 {[%emt 0:05:17]} 11. Nf3 {[%emt 0:03:11]} Nb6 {[%emt 0:03:04]} 12. Bb3 {[%emt 0:02:06]} Nfd5 {[%emt 0:03:15]} 13. Qe5 {[%emt 0:16:06]} Qxe5+ {[%emt 0:03:50]} 14. Nxe5 {[%emt 0:04:14]} f6 {[%emt 0:02:13]} 15. Nf3 {[%emt 0:01:23]} O-O-O {[%emt 0:01:52]} 16. O-O-O {[%emt 0:02:52]} Nxc3 {[%emt 0:02:26]} 17. Bxc3 {[%emt 0:01:35]} Nd5 {[%emt 0:00:43]} 18. Bd2 {[%emt 0:05:30]} e6 {[%emt 0:04:27]} 19. Nd4 {[%emt 0:05:50]} Bg8 {[%emt 0:01:33]} 20. Rde1 {[%emt 0:02:50]} Nxf4 {[%emt 0:04:12]} 21. Nxe6 {[%emt 0:04:48]} Nxe6 {[%emt 0:02:02]} 22. Bxe6+ {[%emt 0:00:29]} Bxe6 {[%emt 0:00:09]} 23. Rxe6 {[%emt 0:00:09]} Bd6 {[%emt 0:01:32]} 24. Rhe1 {[%emt 0:04:22]} Kd7 {[%emt 0:02:14]} 25. c4 {[%emt 0:09:01]} Be5 {[%emt 0:02:25]} 26. R6xe5 {[%emt 0:07:13]} fxe5 {[%emt 0:00:09]} 27. Rxe5 {[%emt 0:00:15]} Rde8 {[%emt 0:02:16]} 28. Bc3 {[%emt 0:04:26]} Rxe5 {[%emt 0:07:01]} 29. Bxe5 {[%emt 0:00:15]} Rf8 {[%emt 0:04:49]} 30. Bxg7 {[%emt 0:02:38]} Rf3 {[%emt 0:00:09]} 31. h4 {[%emt 0:02:15]} Rxd3 {[%emt 0:02:05]} 32. Bxh6 {[%emt 0:01:09]} Rd4 {[%emt 0:00:18]} 33. b3 {[%emt 0:01:05]} Rxg4 {[%emt 0:00:19]} 34. Bg5 {[%emt 0:00:39]} Rg2 {[%emt 0:01:37]} 35. Kb1 {[%emt 0:01:14]} Rh2 {[%emt 0:03:20]} 36. Ka1 {[%emt 0:01:04]} Ke6 {[%emt 0:02:44]} 37. Kb1 {[%emt 0:00:57]} Ke5 {[%emt 0:01:00]} 38. Kc1 {[%emt 0:09:53]} Kd4 {[%emt 0:06:55]} 39. Kb1 {[%emt 0:01:28]} Kc3 {[%emt 0:02:38]} 40. Bf6+ {[%emt 0:00:31]} Kb4 {[%emt 0:00:44]} 41. Ka1 {[%emt 0:03:05]} c5 {[%emt 0:02:09]} 42. Kb1 {[%emt 0:14:24]} Ka3 {[%emt 0:01:49] normal} 43. Bg5 {[%emt 0:02:06] normal} Rxa2 {[%emt 0:01:55] normal} 44. h5 {[%emt 0:01:54] normal} Rh2 {normal} 45. h6 {[%emt 0:01:07] normal} Kxb3 {[%emt 0:00:42]} 46. Kc1 {[%emt 0:00:57]} Kxc4 {[%emt 0:00:56] normal} 0-1